fUSD/lending_fUSD_20251118
["ID","MTS","AMOUNT","RATE_DAILY","PERIOD"]
[394361680,1763494232196,-413.57035236,0.0002,2]
[394361681,1763494232206,-89.44006556,0.000201,2]
[394361682,1763494232223,-92.16103129,0.000201,2]
[394361683,1763494232233,-614.22,0.00020187,2]
[394361684,1763494232244,-502.30842797,0.000202,2]
[394361685,1763494232255,-221.66,0.00020418,2]
[394361686,1763494232265,-178.62799631,0.00021148,2]
[394361687,1763494232278,-43.03200369,0.00021148,2]
[394361688,1763494232289,-221.66,0.00021877,2]
[394361689,1763494232299,-160.91,0.00022,2]
[394361690,1763494232310,-221.66,0.00022606,2]
[394361691,1763494232320,-221.66,0.00023335,2]
[394361692,1763494232330,-221.66,0.00024064,2]
[394361693,1763494232340,-360.2333175,0.00024481,2]
[394361694,1763494232349,-221.66,0.00024794,2]
[394361695,1763494232359,-152.61827093,0.000249,48]
[394361696,1763494232368,-1200.0,0.00024999,2]
[394361697,1763494232378,-298.0,0.00024999,2]
[394361698,1763494232388,-1005.0,0.00024999,2]
[394361699,1763494232398,-602.40420359,0.00025,2]
[394361700,1763494232408,-205.37580993,0.00025,2]
[394361701,1763494232418,-1766.34849528,0.00025,2]
[394361702,1763494232427,-169.24700424,0.00025,2]
[394361703,1763494232436,-360.0,0.00025,2]
[394361704,1763494232445,-3012.63041145,0.00025,2]
[394361706,1763494232454,-7062.37900934,0.00025,2]
[394361707,1763494232463,-1053.22968548,0.00025,2]
[394361708,1763494232473,-165.539074,0.00025,2]
[394361710,1763494232482,-3103.4635674,0.00025,2]
[394361712,1763494232491,-160.91,0.000253,7]
[394361714,1763494232501,-221.66,0.00025523,2]
[394361716,1763494232510,-499.52855895,0.00025914,2]
[394361717,1763494232519,-500.0,0.00025914,2]
[394361718,1763494232529,-505.39261707,0.00025914,2]
[394361719,1763494232539,-594.30428923,0.0002599,2]
[394361720,1763494232550,-21172.74527072,0.00026,2]
[394361721,1763494232559,-4138.65,0.00026,2]
[394361722,1763494232568,-214.22029665,0.00026,2]
[394361723,1763494232578,-161.24710889,0.00026,2]
[394361724,1763494232588,-221.66,0.00026252,2]
[394361725,1763494232599,-614.22,0.00026676,2]
[394361726,1763494232608,-221.66,0.00026981,2]
[394361727,1763494232617,-250.0,0.00027,2]
[394361728,1763494232626,-1022.88292948,0.00027,2]
[394361729,1763494232635,-530.0,0.00027,2]
[394361730,1763494232644,-166.66,0.00027126,30]
[394361731,1763494232653,-181.60109685,0.0002729,2]
[394361732,1763494232663,-4067.42900242,0.0002739,2]
[394361733,1763494232673,-8035.25175005,0.0002739,2]
[394361734,1763494232683,-198.95331396,0.000275,2]
[394361735,1763494232692,-543.49516253,0.000275,2]
[394361736,1763494232701,-166.66,0.00027697,30]
[394361737,1763494232710,-221.66,0.00027711,2]
[394361738,1763494232721,-160.0,0.00028,2]
[394361739,1763494232730,-166.66,0.00028268,30]
[394361740,1763494232739,-6295.21,0.00028335,2]
[394361741,1763494232749,-160.91,0.00028599,30]
[394361742,1763494232759,-3647.52,0.00028608,2]
[394361743,1763494232769,-1429.89,0.00028762,2]
[394361744,1763494232778,-166.66,0.00028839,30]
[394361745,1763494232788,-754.16055952,0.00029,2]
[394361746,1763494232798,-1930.38712877,0.00029,2]
[394361747,1763494232807,-150.0,0.00029342,2]
[394361748,1763494232817,-302.33,0.00029342,2]
[394361749,1763494232827,-150.0,0.00029342,2]
[394361750,1763494232837,-150.0,0.00029342,2]
[394361751,1763494232846,-150.0,0.00029342,2]
[394361752,1763494232855,-150.0,0.00029342,2]
[394361753,1763494232865,-177.39,0.00029342,2]
[394361754,1763494232874,-177.39,0.00029342,2]
[394361755,1763494232884,-177.39,0.00029342,2]
[394361756,1763494232894,-177.39,0.00029342,2]
[394361757,1763494232903,-177.39,0.00029342,2]
[394361758,1763494232914,-177.39,0.00029342,2]
[394361759,1763494232924,-500.0,0.0002941,2]
[394361760,1763494232933,-150.0,0.0002941,30]
[394361761,1763494232943,-166.66,0.0002941,30]
[394361762,1763494232952,-8073.21,0.00029424,2]
[394361763,1763494232962,-9999.99,0.00029424,2]
[394361764,1763494232972,-999.99,0.00029424,2]
[394361765,1763494232981,-1169.95,0.00029424,2]
[394361766,1763494232990,-9999.99,0.00029424,2]
[394361767,1763494233000,-1536.36,0.00029424,2]
[394361768,1763494233009,-150.99,0.00029424,2]
[394361769,1763494233020,-150.99,0.00029424,2]
[394361770,1763494233031,-2779.21,0.00029424,2]
[394361771,1763494233041,-500.0,0.00029437,2]
[394361772,1763494233050,-150.0,0.00029437,30]
[394361773,1763494233060,-500.0,0.00029465,2]
[394361774,1763494233070,-500.0,0.00029492,2]
[394361775,1763494233079,-150.0,0.000295,2]
[394361776,1763494233089,-229.38,0.000295,2]
[394361777,1763494233098,-150.0,0.000295,2]
[394361778,1763494233108,-1004.12521198,0.00029508,2]
[394361779,1763494233117,-607.113,0.00029508,23]
[394361780,1763494233127,-35486.2,0.00029509,2]
[394361781,1763494233137,-212.15693207,0.00029514,2]
[394361782,1763494233146,-150.0,0.00029515,2]
[394361783,1763494233156,-150.0,0.00029515,2]
[394361784,1763494233166,-150.0,0.00029515,2]
[394361785,1763494233179,-150.0,0.00029515,2]
[394361786,1763494233189,-150.0,0.00029515,2]
[394361787,1763494233198,-150.0,0.00029515,2]
[394361788,1763494233207,-150.0,0.00029515,2]
[394361789,1763494233219,-500.0,0.00029515,2]
[394361790,1763494233229,-166.66,0.00029515,2]
[394361791,1763494233240,-500.0,0.0002952,2]
[394361792,1763494233251,-150.0,0.00029527,2]
[394361793,1763494233262,-8598.40125151,0.00029533,2]
[394361794,1763494233272,-2036.60014,0.0002954,2]
[394361795,1763494233283,-150.0,0.00029542,2]
[394361796,1763494233292,-286.670548,0.00029542,2]
[394361797,1763494233302,-150.0,0.00029542,2]
[394361798,1763494233311,-150.0,0.00029542,2]
[394361799,1763494233321,-150.0,0.00029542,2]
[394361800,1763494233331,-150.0,0.00029542,2]
[394361801,1763494233341,-500.0,0.00029542,2]
[394361802,1763494233351,-1000.0,0.00029543,2]
[394361803,1763494233361,-813.24484794,0.00029543,2]
[394361804,1763494233371,-5495.83962507,0.00029543,2]
[394361805,1763494233382,-734.31145004,0.00029543,2]
[394361806,1763494233391,-160.26946119,0.00029543,2]
[394361807,1763494233401,-181.77334926,0.00029547,2]
[394361808,1763494233411,-1824.22,0.00029569,2]
[394361809,1763494233422,-201.81331758,0.0002957,2]
[394361810,1763494233432,-150.0,0.0002957,2]
[394361811,1763494233443,-150.0,0.0002957,2]
[394361812,1763494233453,-181.18562491,0.0002957,2]
[394361813,1763494233464,-229.55273169,0.0002957,2]
[394361814,1763494233475,-216.41325239,0.0002957,2]
[394361815,1763494233485,-500.0,0.00029573,5]
[394361816,1763494233496,-500.0,0.00029573,5]
[394361817,1763494233506,-503.73300027,0.00029573,5]
[394361818,1763494233515,-285.47193993,0.00029573,5]
[394361819,1763494233525,-500.0,0.00029573,5]
[394361820,1763494233535,-200.0,0.00029573,5]
[394361821,1763494233544,-500.0,0.00029573,5]
[394361822,1763494233554,-200.0,0.00029597,2]
[394361823,1763494233564,-150.0,0.00029597,2]
[394361824,1763494233573,-176.4,0.00029623,2]
[394361825,1763494233583,-176.4,0.00029623,2]
[394361826,1763494233593,-200.0,0.00029625,2]
[394361827,1763494233603,-150.0,0.00029632,2]
[394361828,1763494233612,-500.0,0.00029632,2]
[394361829,1763494233622,-264850.74476074,0.00029633,3]
[394361830,1763494233636,-20344.74368926,0.00029633,3]
[394361831,1763494233646,-55823.5552786,0.00029633,3]
[394361832,1763494233658,-101256.4946074,0.00029633,3]
[394361833,1763494233668,-150.43,0.00029633,2]
[394361834,1763494233677,-386.14729874,0.00029633,2]
[394361835,1763494233687,-18639.0,0.00029637,2]
[394361836,1763494233696,-204338.10919127,0.00029643,2]
[394361837,1763494233707,-191290.30354019,0.00029643,2]
[394361847,1763494240070,-253.63770722,0.00029324,2]
[394361849,1763494240084,-1729.9999,0.00029324,2]
[394361866,1763494240262,-991.44314709,0.00029324,2]
[394361878,1763494243400,-6488.0,0.00029324,2]
[394361904,1763494290455,500.0,0.00041693,120]
[394361905,1763494290839,500.0,0.00041693,120]
[394361908,1763494359588,547.925209,0.00041693,120]
[394361914,1763494411425,1000.0,0.00029224,120]
[394362126,1763495273111,-425.2,0.0002838,30]
[394362127,1763495273151,-166.66,0.00029981,30]
[394362128,1763495273177,-9408.14,0.0003,30]
[394362138,1763495390049,-500.0,0.00029999,30]
[394362141,1763495397103,500.0,0.00041696,120]
[394362142,1763495397336,500.0,0.00041696,120]
[394362143,1763495397593,500.0,0.00041696,120]
[394362144,1763495397867,500.0,0.00041696,120]
[394362145,1763495398091,500.0,0.00041696,120]
[394362146,1763495398329,500.0,0.00041696,120]
[394362147,1763495398564,500.0,0.00041696,120]
[394362148,1763495398797,500.0,0.00041696,120]
[394362149,1763495399037,500.0,0.00041696,120]
[394362150,1763495399280,500.0,0.00041696,120]
[394362151,1763495399519,562.43880417,0.00041696,120]
[394362152,1763495401423,480.93271715,0.00041696,120]
[394362169,1763495432231,-201.47945376,0.00019136,2]
[394362171,1763495432241,-300.0,0.0002105,2]
[394362175,1763495432255,-300.0,0.0002105,2]
[394362178,1763495432266,-300.0,0.0002105,2]
[394362179,1763495432275,-253.9679583,0.0002105,2]
[394362181,1763495432285,-1107.31449824,0.0002221,2]
[394362183,1763495432295,-150.0,0.00022443,2]
[394362185,1763495432304,-150.0,0.00022443,2]
[394362187,1763495432315,-479.30025826,0.00022948,2]
[394362189,1763495432325,-710.93903844,0.00022983,2]
[394362190,1763495432337,-1841.22096156,0.00022983,2]
[394362191,1763495432346,-160.16,0.00022984,2]
[394362192,1763495432355,-3324.74,0.00024263,2]
[394362193,1763495432364,-163.46,0.00024425,2]
[394362194,1763495432374,-229.41,0.00025063,2]
[394362195,1763495432383,-215.97,0.00026164,2]
[394362196,1763495432393,-174.0,0.00027,7]
[394362197,1763495432402,-1200.0,0.00027012,2]
[394362198,1763495432412,-2600.53526518,0.00027013,2]
[394362199,1763495432422,-300.0,0.00027045,2]
[394362200,1763495432431,-300.0,0.00027045,2]
[394362201,1763495432443,-150.0,0.00027046,2]
[394362202,1763495432453,-250.0,0.00027084,2]
[394362203,1763495432462,-1000.0,0.0002723,2]
[394362204,1763495432472,-10068.18,0.0002723,2]
[394362205,1763495432482,-2751.0,0.00027412,2]
[394362206,1763495432492,-500.0,0.00027483,2]
[394362207,1763495432502,-199.45,0.00027548,2]
[394362208,1763495432512,-8117.77,0.00027704,2]
[394362209,1763495432522,-4271.10204678,0.00027705,2]
[394362210,1763495432532,-500.0,0.00027833,2]
[394362211,1763495432542,-5000.0,0.00027833,2]
[394362212,1763495432552,-552.82,0.00027872,2]
[394362213,1763495432563,-1000.0,0.00028202,2]
[394362214,1763495432572,-154.0,0.00028202,2]
[394362215,1763495432581,-3192.26,0.00028203,2]
[394362216,1763495432591,-499.99,0.00028203,2]
[394362217,1763495432605,-150.99,0.00028203,2]
[394362218,1763495432615,-150.99,0.00028203,2]
[394362219,1763495432625,-19028.97679328,0.00028216,2]
[394362220,1763495432636,-1000.0,0.00028234,2]
[394362221,1763495432647,-503.53229708,0.00028311,4]
[394362223,1763495432660,-999.0,0.00028337,3]
[394362224,1763495432670,-77314.92,0.00028411,2]
[394362226,1763495432681,-224.0,0.00028454,7]
[394362227,1763495432691,-501.57452032,0.00028473,2]
[394362228,1763495432701,-322.46058965,0.00028473,5]
[394362229,1763495432711,-500.0,0.00028473,5]
[394362230,1763495432721,-229.41,0.00028488,2]
[394362231,1763495432731,-177.39,0.00028521,2]
[394362232,1763495432740,-177.39,0.00028521,2]
[394362233,1763495432749,-177.39,0.00028521,2]
[394362234,1763495432758,-177.39,0.00028521,2]
[394362235,1763495432767,-177.39,0.00028578,2]
[394362236,1763495432776,-503.53229709,0.0002859,4]
[394362237,1763495432785,-500.0,0.00028673,5]
[394362238,1763495432794,-286.02164789,0.00028673,5]
[394362239,1763495432804,-500.0,0.00028673,5]
[394362240,1763495432814,-500.0,0.00028673,5]
[394362241,1763495432824,-297.01930622,0.00028673,5]
[394362242,1763495432834,-500.0,0.00028673,5]
[394362243,1763495432843,-500.0,0.00028673,5]
[394362244,1763495432855,-200.0,0.00028673,5]
[394362245,1763495432865,-500.0,0.00028673,5]
[394362246,1763495432875,-505.67181755,0.00028673,5]
[394362247,1763495432884,-507.2530192,0.00028673,5]
[394362248,1763495432894,-177.39,0.00028678,2]
[394362249,1763495432904,-2236.0,0.00028682,2]
[394362250,1763495432913,-500.0,0.00028689,2]
[394362251,1763495432927,-243.30458604,0.00028689,2]
[394362252,1763495432937,-500.0,0.00028689,2]
[394362253,1763495432946,-500.0,0.00028689,2]
[394362254,1763495432956,-290.29803099,0.00028689,2]
[394362255,1763495432965,-59634.57,0.0002869,2]
[394362256,1763495432975,-177.39,0.00028778,2]
[394362257,1763495432985,-2000.0,0.000288,2]
[394362258,1763495432994,-400.0,0.000289,10]
[394362259,1763495433004,-303.1,0.00028901,14]
[394362260,1763495433013,-207.0,0.00028901,2]
[394362261,1763495433023,-207.0,0.00028901,2]
[394362262,1763495433032,-207.0,0.00028901,2]
[394362263,1763495433042,-207.0,0.00028901,2]
[394362264,1763495433052,-207.0,0.00028901,2]
[394362265,1763495433062,-207.0,0.00028901,2]
[394362266,1763495433071,-207.0,0.00028901,2]
[394362267,1763495433081,-153.0,0.00028901,2]
[394362268,1763495433091,-153.0,0.00028901,2]
[394362269,1763495433099,-153.0,0.00028901,2]
[394362270,1763495433111,-153.0,0.00028901,2]
[394362271,1763495433120,-153.0,0.00028901,2]
[394362272,1763495433130,-153.0,0.00028901,2]
[394362273,1763495433140,-153.0,0.00028901,2]
[394362274,1763495433149,-153.0,0.00028901,2]
[394362275,1763495433159,-153.0,0.00028901,2]
[394362276,1763495433168,-153.0,0.00028901,2]
[394362277,1763495433178,-153.0,0.00028901,2]
[394362278,1763495433187,-345.0,0.00028901,2]
[394362279,1763495433197,-345.0,0.00028901,2]
[394362280,1763495433207,-345.0,0.00028901,2]
[394362281,1763495433217,-345.0,0.00028901,2]
[394362282,1763495433226,-345.0,0.00028901,2]
[394362283,1763495433235,-345.0,0.00028901,2]
[394362284,1763495433259,-153.0,0.00028901,2]
[394362285,1763495433271,-153.0,0.00028901,2]
[394362286,1763495433281,-153.0,0.00028901,2]
[394362287,1763495433291,-153.0,0.00028901,2]
[394362288,1763495433300,-153.0,0.00028901,2]
[394362289,1763495433311,-153.0,0.00028901,2]
[394362290,1763495433321,-153.0,0.00028901,2]
[394362291,1763495433331,-153.0,0.00028901,2]
[394362292,1763495433341,-153.0,0.00028901,2]
[394362293,1763495433351,-153.0,0.00028901,2]
[394362294,1763495433361,-153.0,0.00028901,2]
[394362295,1763495433371,-413.58495286,0.00028973,5]
[394362296,1763495433382,-4801.61571397,0.00029,2]
[394362297,1763495433397,-4648.70202146,0.00029,2]
[394362298,1763495433413,-486.71535361,0.00029,2]
[394362299,1763495433426,-7897.96691396,0.00029,2]
[394362300,1763495433436,-2234.0,0.00029123,2]
[394362301,1763495433446,-221.0,0.00029138,2]
[394362302,1763495433456,-224.0,0.00029151,2]
[394362303,1763495433465,-303.1,0.00029175,14]
[394362304,1763495433475,-1400.62,0.00029205,2]
[394362305,1763495433486,-500.0,0.00029221,5]
[394362306,1763495433496,-1000.0,0.00029221,5]
[394362307,1763495433506,-1000.0,0.00029221,5]
[394362308,1763495433515,-785.09928926,0.00029231,2]
[394362309,1763495433525,-420.0,0.00029237,2]
[394362310,1763495433535,-500.0,0.00029304,7]
[394362311,1763495433546,-500.0,0.00029313,2]
[394362312,1763495433556,-630.93518697,0.00029313,2]
[394362313,1763495433568,-151.0,0.00029314,7]
[394362314,1763495433578,-221.0,0.00029317,7]
[394362315,1763495433588,-1006.9975,0.00029323,2]
[394362316,1763495433606,-151.0,0.00029324,7]
[394362317,1763495433616,-151.0,0.00029324,7]
[394362318,1763495433626,-221.0,0.00029331,7]
[394362319,1763495433636,-12771.3837602,0.00029332,3]
[394362320,1763495433647,-416.87,0.00029342,2]
[394362321,1763495433658,-177.39,0.00029342,2]
[394362322,1763495433668,-416.87,0.00029342,2]
[394362323,1763495433678,-177.39,0.00029342,2]
[394362324,1763495433689,-416.87,0.00029342,2]
[394362325,1763495433699,-416.87,0.00029342,2]
[394362326,1763495433709,-177.39,0.00029342,2]
[394362327,1763495433719,-416.87,0.00029342,2]
[394362328,1763495433728,-177.39,0.00029342,2]
[394362329,1763495433738,-167.84,0.00029342,2]
[394362330,1763495433748,-150.0,0.00029342,2]
[394362331,1763495433758,-416.87,0.00029342,2]
[394362332,1763495433768,-416.87,0.00029342,2]
[394362333,1763495433778,-416.87,0.00029342,2]
[394362334,1763495433789,-416.87,0.00029342,2]
[394362335,1763495433799,-416.87,0.00029342,2]
[394362336,1763495433808,-416.87,0.00029342,2]
[394362337,1763495433820,-177.39,0.00029342,2]
[394362338,1763495433831,-416.87,0.00029342,2]
[394362339,1763495433841,-177.39,0.00029342,2]
[394362340,1763495433851,-177.39,0.00029342,2]
[394362341,1763495433861,-416.87,0.00029342,2]
[394362342,1763495433871,-177.39,0.00029342,2]
[394362343,1763495433881,-177.39,0.00029342,2]
[394362344,1763495433891,-177.39,0.00029342,2]
[394362345,1763495433901,-416.87,0.00029342,2]
[394362346,1763495433911,-416.87,0.00029342,2]
[394362347,1763495433921,-416.87,0.00029342,2]
[394362348,1763495433931,-755.98,0.00029342,2]
[394362349,1763495433941,-1697.16678,0.0002935,2]
[394362350,1763495433952,-400.0,0.00029358,5]
[394362351,1763495433961,-2236.0,0.00029399,7]
[394362352,1763495433975,-303.1,0.00029449,14]
[394362353,1763495433985,-221.0,0.0002952,7]
[394362354,1763495433995,-815.31697569,0.00029531,2]
[394362355,1763495434006,-15948.50439935,0.00029532,2]
[394362356,1763495434015,-1000.0,0.00029533,2]
[394362357,1763495434026,-221.0,0.00029568,2]
[394362358,1763495434036,-12771.3837602,0.00029596,3]
[394362359,1763495434046,-2234.0,0.00029606,7]
[394362360,1763495434056,-733.03272732,0.00029613,2]
[394362361,1763495434068,-197.460033,0.00029622,7]
[394362362,1763495434078,-9959.57543009,0.00029622,3]
[394362363,1763495434091,-40968.12352058,0.00029622,3]
[394362364,1763495434103,-1170.39579267,0.00029622,3]
[394362365,1763495434115,-452.11662572,0.00029622,3]
[394362366,1763495434127,-440.56810984,0.00029622,3]
[394362367,1763495434139,-2003.42127865,0.00029622,3]
[394362368,1763495434150,-510.0,0.00029622,3]
[394362369,1763495434166,-2351.37,0.00029622,3]
[394362370,1763495434178,-3180.31839703,0.00029622,3]
[394362371,1763495434189,-14276.95096023,0.00029622,3]
[394362372,1763495434201,-701.61386136,0.00029622,3]
[394362373,1763495434214,-572.575638,0.00029622,3]
[394362375,1763495438244,-151.0,0.00029622,7]
[394362376,1763495438256,-488.88094719,0.00029622,3]
[394362377,1763495438350,-37866.54328064,0.00029622,3]
[394362378,1763495438360,-342.15473707,0.00029631,2]
[394362379,1763495438371,-26798.3690743,0.00029632,2]
[394362380,1763495438381,-2280.4496327,0.00029632,2]
[394362381,1763495438391,-150.0,0.00029632,2]
[394362382,1763495438401,-150.0,0.00029632,2]
[394362383,1763495438411,-150.0,0.00029632,2]
[394362384,1763495438421,-150.0,0.00029632,2]
[394362385,1763495438431,-150.0,0.00029632,2]
[394362386,1763495438441,-150.21338972,0.00029632,2]
[394362387,1763495438451,-150.0,0.00029632,2]
[394362388,1763495438462,-254.26253146,0.00029632,2]
[394362389,1763495438471,-150.0,0.00029632,2]
[394362390,1763495438482,-150.0,0.00029632,2]
[394362391,1763495438492,-500.0,0.00029632,2]
[394362392,1763495438503,-150.0,0.00029632,2]
[394362394,1763495438514,-150.0,0.00029632,2]
[394362396,1763495438524,-150.0,0.00029632,2]
[394362397,1763495438533,-150.57124475,0.00029632,2]
[394362398,1763495438543,-150.0,0.00029632,2]
[394362399,1763495438553,-150.0,0.00029632,2]
[394362400,1763495438563,-150.0,0.00029632,2]
[394362401,1763495438574,-201.42723711,0.00029632,2]
[394362402,1763495438585,-150.0,0.00029632,2]
[394362403,1763495438596,-150.0,0.00029632,2]
[394362404,1763495438609,-150.0,0.00029632,2]
[394362405,1763495438619,-150.0,0.00029632,2]
[394362406,1763495438629,-150.0,0.00029632,2]
[394362407,1763495438639,-150.59614754,0.00029632,2]
[394362408,1763495438649,-150.0,0.00029632,2]
[394362409,1763495438660,-150.60787825,0.00029632,2]
[394362410,1763495438670,-150.0,0.00029632,2]
[394362411,1763495438682,-150.0,0.00029632,2]
[394362412,1763495438692,-150.0,0.00029632,2]
[394362413,1763495438702,-150.0,0.00029632,2]
[394362414,1763495438715,-500.0,0.00029632,2]
[394362415,1763495438725,-213012.2401741,0.00029632,2]
[394362416,1763495438736,-151.0,0.00029632,7]
[394362417,1763495438746,-150.0,0.00029632,2]
[394362418,1763495438756,-500.0,0.00029632,2]
[394362419,1763495438766,-151.0,0.00029632,7]
[394362420,1763495438777,-151.0,0.00029632,7]
[394362421,1763495438786,-151.0,0.00029632,7]
[394362422,1763495438796,-362.292396,0.00029632,7]
[394362423,1763495438807,-362.292396,0.00029632,7]
[394362424,1763495438817,-362.292396,0.00029632,7]
[394362425,1763495438828,-362.292396,0.00029632,7]
[394362426,1763495438838,-12771.3837602,0.00029633,3]
[394362427,1763495438848,-16806.9189178,0.00029633,3]
[394362428,1763495438859,-8881.7088247,0.00029636,2]
[394362429,1763495438870,-500.0,0.00029642,2]
[394362430,1763495438880,-234.17295491,0.00029643,2]
[394362431,1763495438890,-207.5865931,0.00029643,2]
[394362432,1763495438900,-151.0,0.00029643,3]
[394362433,1763495438910,-1245.0,0.00029643,3]
[394362434,1763495438921,-151.0,0.00029643,3]
[394362435,1763495438931,-151.0,0.00029643,3]
[394362436,1763495438941,-1245.0,0.00029643,3]
[394362437,1763495438951,-151.0,0.00029643,3]
[394362438,1763495438960,-151.0,0.00029643,3]
[394362439,1763495438971,-1245.0,0.00029643,3]
[394362440,1763495438982,-151.0,0.00029643,3]
[394362441,1763495438993,-151.0,0.00029643,3]
[394362442,1763495439003,-1245.0,0.00029643,3]
[394362443,1763495439014,-151.0,0.00029643,3]
[394362444,1763495439024,-151.0,0.00029643,3]
[394362445,1763495439035,-1245.0,0.00029643,3]
[394362446,1763495439045,-151.0,0.00029643,3]
[394362447,1763495439057,-151.0,0.00029643,3]
[394362448,1763495439072,-1245.0,0.00029643,3]
[394362449,1763495439082,-153.0,0.00029643,3]
[394362450,1763495439092,-151.0,0.00029643,3]
[394362451,1763495439103,-151.0,0.00029643,3]
[394362452,1763495439113,-1245.0,0.00029643,3]
[394362453,1763495439124,-153.0,0.00029643,3]
[394362454,1763495439134,-151.0,0.00029643,3]
[394362455,1763495439144,-151.0,0.00029643,3]
[394362456,1763495439154,-1245.0,0.00029643,3]
[394362457,1763495439165,-151.0,0.00029643,3]
[394362458,1763495439175,-153.0,0.00029643,3]
[394362459,1763495439186,-151.0,0.00029643,3]
[394362460,1763495439197,-1245.0,0.00029643,3]
[394362461,1763495439207,-151.0,0.00029643,3]
[394362462,1763495439218,-153.0,0.00029643,3]
[394362463,1763495439229,-151.0,0.00029643,3]
[394362464,1763495439239,-1245.0,0.00029643,3]
[394362465,1763495439250,-151.0,0.00029643,3]
[394362466,1763495439262,-151.0,0.00029643,3]
[394362467,1763495439272,-1245.0,0.00029643,3]
[394362468,1763495439283,-222.38828946,0.00029643,3]
[394362469,1763495439293,-151.0,0.00029643,3]
[394362470,1763495439303,-1245.0,0.00029643,3]
[394362471,1763495439314,-151.0,0.00029643,3]
[394362472,1763495439324,-151.0,0.00029643,3]
[394362473,1763495439334,-151.0,0.00029643,3]
[394362474,1763495439344,-150.0,0.00029659,2]
[394362475,1763495439354,-500.0,0.00029659,2]
[394362476,1763495439364,-150.0,0.00029659,2]
[394362477,1763495439374,-150.0,0.00029659,2]
[394362478,1763495439384,-150.0,0.00029659,2]
[394362479,1763495439394,-150.0,0.00029659,2]
[394362480,1763495439404,-150.0,0.00029659,2]
[394362481,1763495439413,-150.0,0.00029659,2]
[394362482,1763495439424,-150.0,0.00029659,2]
[394362483,1763495439433,-150.0,0.00029659,2]
[394362484,1763495439443,-500.0,0.00029659,2]
[394362485,1763495439453,-500.0,0.00029659,2]
[394362486,1763495439462,-280.79144782,0.00029687,2]
[394362487,1763495439472,-500.0,0.00029687,2]
[394362488,1763495439481,-200.0,0.00029687,2]
[394362489,1763495439490,-200.0,0.00029687,2]
[394362490,1763495439500,-200.0,0.00029687,2]
[394362491,1763495439510,-200.0,0.00029687,2]
[394362492,1763495439520,-150.0,0.00029687,2]
[394362493,1763495439530,-200.0,0.00029687,2]
[394362494,1763495439540,-200.0,0.00029687,2]
[394362495,1763495439550,-150.0,0.00029687,2]
[394362496,1763495439560,-500.0,0.00029687,2]
[394362497,1763495439570,-500.0,0.00029687,2]
[394362498,1763495439581,-228.204167,0.00029707,2]
[394362499,1763495439592,-500.0,0.00029714,2]
[394362500,1763495439606,-205.17986171,0.00029714,2]
[394362501,1763495439616,-184.98085944,0.00029714,2]
[394362502,1763495439626,-500.0,0.00029714,2]
[394362503,1763495439636,-500.0,0.00029714,2]
[394362504,1763495439646,-303.1,0.00029723,14]
[394362505,1763495439659,-12771.3837602,0.00029732,3]
[394362506,1763495439671,-500.0,0.00029742,2]
[394362507,1763495439681,-500.0,0.00029742,2]